[Event "Late-Titled-Tuesday-Blitz-April-23-2024"]
[Site "Chess.com"]
[Date "2024.04.23"]
[Round "3"]
[White "GelmanAlexander"]
[Black "Durarbayli"]
[Result "0-1"]
[WhiteElo "2619"]
[BlackElo "2914"]
[TimeControl "180+1"]
[EndTime "14:28:13 PDT"]
[Termination "Durarbayli won by resignation"]

1. d4 {[%clk 0:03:00.9]} 1... d5 {[%clk 0:02:58.7]} 2. Nc3 {[%clk 0:02:59.1]}
2... Nf6 {[%clk 0:02:57.7]} 3. Bf4 {[%clk 0:02:59.2]} 3... c5 {[%clk 0:02:58.4]}
4. e3 {[%clk 0:02:59.1]} 4... cxd4 {[%clk 0:02:53]} 5. exd4 {[%clk 0:02:58.8]}
5... a6 {[%clk 0:02:53.4]} 6. Nf3 {[%clk 0:02:57.5]} 6... Bg4 {[%clk 0:02:51.9]}
7. h3 {[%clk 0:02:57.3]} 7... Bxf3 {[%clk 0:02:52.1]} 8. Qxf3 {[%clk 0:02:58.2]}
8... Nc6 {[%clk 0:02:52.2]} 9. O-O-O {[%clk 0:02:58.9]} 9... e6 {[%clk
0:02:49.1]} 10. g4 {[%clk 0:02:59.2]} 10... Rc8 {[%clk 0:02:39.7]} 11. g5 {[%clk
0:02:55.5]} 11... Nd7 {[%clk 0:02:39.8]} 12. h4 {[%clk 0:02:55.7]} 12... Qa5
{[%clk 0:02:36.8]} 13. Kb1 {[%clk 0:02:47.9]} 13... Nb4 {[%clk 0:02:08.9]} 14.
a3 {[%clk 0:02:31.8]} 14... Nc6 {[%clk 0:02:08.2]} 15. h5 {[%clk 0:02:25.1]}
15... Bxa3 {[%clk 0:01:53.1]} 16. bxa3 {[%clk 0:02:18.6]} 16... Qxa3 {[%clk
0:01:53.1]} 17. Bc1 {[%clk 0:02:02.2]} 17... Qb4+ {[%clk 0:01:43.4]} 18. Bb2
{[%clk 0:02:00.4]} 18... Nxd4 {[%clk 0:01:28]} 19. Rh4 {[%clk 0:01:22.2]} 19...
Qxb2+ {[%clk 0:01:25.4]} 20. Kxb2 {[%clk 0:01:20]} 20... Nxf3 {[%clk 0:01:26.3]}
21. Rb4 {[%clk 0:01:13.3]} 21... b5 {[%clk 0:01:19.8]} 22. g6 {[%clk 0:01:11.7]}
22... hxg6 {[%clk 0:01:20.3]} 23. hxg6 {[%clk 0:01:12.6]} 23... f5 {[%clk
0:01:11.8]} 24. Bg2 {[%clk 0:01:08.1]} 24... Nh4 {[%clk 0:01:03.2]} 25. Bxd5
{[%clk 0:01:06.3]} 25... exd5 {[%clk 0:00:59.5]} 26. Nxd5 {[%clk 0:01:07.2]}
26... Nxg6 {[%clk 0:00:53]} 27. Rbd4 {[%clk 0:01:01.6]} 27... Nde5 {[%clk
0:00:40.8]} 28. f4 {[%clk 0:00:55.5]} 28... Nc4+ {[%clk 0:00:40.5]} 29. Kc1
{[%clk 0:00:55.6]} 29... Kf7 {[%clk 0:00:37.7]} 30. Nb4 {[%clk 0:00:50.9]} 30...
Rh2 {[%clk 0:00:32.5]} 31. Rd8 {[%clk 0:00:50.8]} 31... Rxd8 {[%clk 0:00:32.4]}
0-1

[Event "Late-Titled-Tuesday-Blitz-April-23-2024"]
[Site "Chess.com"]
[Date "2024.04.23"]
[Round "3"]
[White "WilsonPalencia21"]
[Black "ZachHKL"]
[Result "0-1"]
[WhiteElo "2516"]
[BlackElo "2293"]
[TimeControl "180+1"]
[EndTime "14:28:13 PDT"]
[Termination "ZachHKL won on time"]

1. d4 {[%clk 0:03:00.9]} 1... Nf6 {[%clk 0:02:55.1]} 2. c4 {[%clk 0:03:01.1]}
2... c6 {[%clk 0:02:54.9]} 3. Nf3 {[%clk 0:03:01.3]} 3... d5 {[%clk 0:02:54.4]}
4. Nc3 {[%clk 0:03:01.4]} 4... e6 {[%clk 0:02:45.1]} 5. Bg5 {[%clk 0:03:00.6]}
5... Nbd7 {[%clk 0:02:44.5]} 6. e3 {[%clk 0:02:59.9]} 6... Qa5 {[%clk
0:02:41.2]} 7. Nd2 {[%clk 0:03:00.5]} 7... Bb4 {[%clk 0:02:36.6]} 8. Qc2 {[%clk
0:02:57.2]} 8... h6 {[%clk 0:02:33.3]} 9. Bxf6 {[%clk 0:02:53.5]} 9... Nxf6
{[%clk 0:02:32.9]} 10. a3 {[%clk 0:02:53.8]} 10... Bxc3 {[%clk 0:02:32.5]} 11.
Qxc3 {[%clk 0:02:53.5]} 11... Qxc3 {[%clk 0:02:32.1]} 12. bxc3 {[%clk
0:02:54.4]} 12... b6 {[%clk 0:02:30.9]} 13. a4 {[%clk 0:02:48.2]} 13... Ba6
{[%clk 0:02:17.4]} 14. cxd5 {[%clk 0:02:43.3]} 14... Bxf1 {[%clk 0:02:16.3]} 15.
Rxf1 {[%clk 0:02:42.6]} 15... exd5 {[%clk 0:02:14.1]} 16. a5 {[%clk 0:02:39]}
16... Kd7 {[%clk 0:02:12.8]} 17. Ke2 {[%clk 0:02:38]} 17... Kc7 {[%clk
0:02:10.6]} 18. f3 {[%clk 0:02:37.3]} 18... Rhe8 {[%clk 0:02:08.8]} 19. Kd3
{[%clk 0:02:36.6]} 19... c5 {[%clk 0:02:06.6]} 20. Rfb1 {[%clk 0:02:21.4]} 20...
Kc6 {[%clk 0:02:00]} 21. c4 {[%clk 0:01:48.5]} 21... cxd4 {[%clk 0:01:47.8]} 22.
exd4 {[%clk 0:01:47.2]} 22... Rad8 {[%clk 0:01:40.6]} 23. axb6 {[%clk
0:01:44.8]} 23... axb6 {[%clk 0:01:39.3]} 24. Ra6 {[%clk 0:01:44.7]} 24... Rb8
{[%clk 0:01:34.2]} 25. c5 {[%clk 0:01:43.4]} 25... Nd7 {[%clk 0:01:33.1]} 26.
Nf1 {[%clk 0:01:16.3]} 26... Ra8 {[%clk 0:01:29.7]} 27. Rxa8 {[%clk 0:01:12.9]}
27... Rxa8 {[%clk 0:01:30.6]} 28. cxb6 {[%clk 0:01:10.2]} 28... Ra3+ {[%clk
0:01:30.5]} 29. Ke2 {[%clk 0:01:06]} 29... Nxb6 {[%clk 0:01:30]} 30. Ne3 {[%clk
0:01:05.8]} 30... Ra2+ {[%clk 0:01:30.3]} 31. Kd3 {[%clk 0:01:04.7]} 31... Ra3+
{[%clk 0:01:26.7]} 32. Kc2 {[%clk 0:00:59.4]} 32... Rxe3 {[%clk 0:01:23.8]} 0-1

[Event "Late-Titled-Tuesday-Blitz-April-23-2024"]
[Site "Chess.com"]
[Date "2024.04.23"]
[Round "3"]
[White "Horokoskii"]
[Black "Kavyev_Ruslan"]
[Result "1-0"]
[WhiteElo "2180"]
[BlackElo "2397"]
[TimeControl "180+1"]
[EndTime "14:28:17 PDT"]
[Termination "Horokoskii won by resignation"]

1. c4 {[%clk 0:03:00.9]} 1... e6 {[%clk 0:02:59.4]} 2. e4 {[%clk 0:02:57.6]}
2... d5 {[%clk 0:02:56.8]} 3. cxd5 {[%clk 0:02:55]} 3... exd5 {[%clk 0:02:57.7]}
4. e5 {[%clk 0:02:54.6]} 4... d4 {[%clk 0:02:56.2]} 5. Nf3 {[%clk 0:02:53.8]}
5... c5 {[%clk 0:02:54.5]} 6. Bc4 {[%clk 0:02:52.4]} 6... Nc6 {[%clk 0:02:48.7]}
7. O-O {[%clk 0:02:52.1]} 7... Nge7 {[%clk 0:02:36.2]} 8. Qe2 {[%clk 0:02:48.2]}
8... Ng6 {[%clk 0:02:32.7]} 9. e6 {[%clk 0:02:47.6]} 9... fxe6 {[%clk
0:02:26.4]} 10. Bxe6 {[%clk 0:02:46]} 10... Be7 {[%clk 0:02:23]} 11. d3 {[%clk
0:02:40.7]} 11... Bxe6 {[%clk 0:02:11.7]} 12. Qxe6 {[%clk 0:02:39.8]} 12... Qd6
{[%clk 0:02:08.5]} 13. Qc4 {[%clk 0:02:36.9]} 13... a6 {[%clk 0:02:01.9]} 14. a4
{[%clk 0:02:35.2]} 14... Nce5 {[%clk 0:01:58]} 15. Nxe5 {[%clk 0:02:32.5]} 15...
Nxe5 {[%clk 0:01:57.7]} 16. Qb3 {[%clk 0:02:30.8]} 16... Rb8 {[%clk 0:01:39.7]}
17. Nd2 {[%clk 0:02:29.7]} 17... Nf7 {[%clk 0:01:25.2]} 18. Ne4 {[%clk
0:02:22.7]} 18... Qg6 {[%clk 0:01:19.7]} 19. Bf4 {[%clk 0:02:21.3]} 19... O-O
{[%clk 0:00:48.3]} 20. Bxb8 {[%clk 0:02:20.6]} 20... Rxb8 {[%clk 0:00:49.2]} 21.
Rfe1 {[%clk 0:02:13]} 21... Kh8 {[%clk 0:00:46.3]} 22. Qd5 {[%clk 0:02:10.3]}
22... b6 {[%clk 0:00:14.2]} 23. Ng3 {[%clk 0:01:51.6]} 23... Bf6 {[%clk
0:00:12.4]} 24. Ne4 {[%clk 0:01:45.5]} 24... Ne5 {[%clk 0:00:11.4]} 25. Nxf6
{[%clk 0:01:42.7]} 25... gxf6 {[%clk 0:00:12.3]} 26. Rxe5 {[%clk 0:01:40.8]}
26... Rg8 {[%clk 0:00:11.5]} 27. Re7 {[%clk 0:01:31.7]} 27... Qxd3 {[%clk
0:00:09.1]} 28. Rae1 {[%clk 0:01:29.5]} 28... Qg6 {[%clk 0:00:08]} 29. g3 {[%clk
0:01:28.6]} 29... h5 {[%clk 0:00:07.6]} 30. Qf7 {[%clk 0:01:28.1]} 30... Qf5
{[%clk 0:00:05.9]} 31. Re8 {[%clk 0:01:23.9]} 1-0

[Event "Late-Titled-Tuesday-Blitz-April-23-2024"]
[Site "Chess.com"]
[Date "2024.04.23"]
[Round "3"]
[White "nihalsarin"]
[Black "Nimrod_Veinberg"]
[Result "1-0"]
[WhiteElo "3140"]
[BlackElo "2818"]
[TimeControl "180+1"]
[EndTime "14:28:20 PDT"]
[Termination "nihalsarin won by resignation"]

1. e4 {[%clk 0:02:50.7]} 1... c5 {[%clk 0:02:59.5]} 2. Nc3 {[%clk 0:02:49.2]}
2... e6 {[%clk 0:02:56.1]} 3. g4 {[%clk 0:02:38.4]} 3... a6 {[%clk 0:02:54.9]}
4. Bg2 {[%clk 0:02:36.9]} 4... Nc6 {[%clk 0:02:51.2]} 5. d3 {[%clk 0:02:34.9]}
5... b5 {[%clk 0:02:50.1]} 6. h4 {[%clk 0:02:33.8]} 6... Bb7 {[%clk 0:02:48.8]}
7. f4 {[%clk 0:02:34.1]} 7... d5 {[%clk 0:02:23.1]} 8. Nf3 {[%clk 0:02:31.4]}
8... Nf6 {[%clk 0:02:16.4]} 9. g5 {[%clk 0:02:02.2]} 9... dxe4 {[%clk
0:02:16.1]} 10. Nd2 {[%clk 0:02:02.7]} 10... e3 {[%clk 0:02:03.1]} 11. Nde4
{[%clk 0:01:59.1]} 11... Nxe4 {[%clk 0:02:01.3]} 12. Bxe4 {[%clk 0:02:00]} 12...
e2 {[%clk 0:01:46]} 13. Nxe2 {[%clk 0:01:55.5]} 13... g6 {[%clk 0:01:39.2]} 14.
Be3 {[%clk 0:01:52.6]} 14... Qe7 {[%clk 0:01:36.1]} 15. h5 {[%clk 0:01:46]}
15... Bg7 {[%clk 0:01:31]} 16. c3 {[%clk 0:01:46.5]} 16... Rg8 {[%clk
0:01:14.6]} 17. a4 {[%clk 0:01:36.8]} 17... b4 {[%clk 0:01:14]} 18. a5 {[%clk
0:01:37.2]} 18... O-O-O {[%clk 0:00:42.7]} 19. Qa4 {[%clk 0:01:28.7]} 19... Kc7
{[%clk 0:00:16.8]} 20. cxb4 {[%clk 0:01:06.2]} 20... Nxb4 {[%clk 0:00:15.4]} 21.
Rc1 {[%clk 0:01:06.9]} 21... Nd5 {[%clk 0:00:03.7]} 22. Bxc5 {[%clk 0:01:04.7]}
22... Qd7 {[%clk 0:00:04.2]} 23. Bd6+ {[%clk 0:01:02]} 1-0

[Event "Late-Titled-Tuesday-Blitz-April-23-2024"]
[Site "Chess.com"]
[Date "2024.04.23"]
[Round "3"]
[White "GP9isback23"]
[Black "DeArron_Fox"]
[Result "1-0"]
[WhiteElo "2670"]
[BlackElo "2488"]
[TimeControl "180+1"]
[EndTime "14:28:31 PDT"]
[Termination "GP9isback23 won on time"]

1. d4 {[%clk 0:03:00.4]} 1... d5 {[%clk 0:02:59.8]} 2. Nf3 {[%clk 0:02:59.7]}
2... Nf6 {[%clk 0:03:00.1]} 3. c4 {[%clk 0:03:00.2]} 3... e6 {[%clk 0:03:00]} 4.
Nc3 {[%clk 0:03:00.4]} 4... Be7 {[%clk 0:03:00.2]} 5. Bg5 {[%clk 0:03:00.2]}
5... h6 {[%clk 0:03:00.1]} 6. Bh4 {[%clk 0:03:00.2]} 6... O-O {[%clk 0:03:00.4]}
7. e3 {[%clk 0:03:00.8]} 7... b6 {[%clk 0:03:00.8]} 8. cxd5 {[%clk 0:02:59.8]}
8... Nxd5 {[%clk 0:03:01.3]} 9. Bxe7 {[%clk 0:02:59.7]} 9... Qxe7 {[%clk
0:03:02.2]} 10. Be2 {[%clk 0:02:59.8]} 10... Bb7 {[%clk 0:03:01.6]} 11. O-O
{[%clk 0:02:59.4]} 11... Nd7 {[%clk 0:02:59.8]} 12. Rc1 {[%clk 0:02:59.3]} 12...
c5 {[%clk 0:02:59.8]} 13. Qa4 {[%clk 0:02:59.4]} 13... cxd4 {[%clk 0:02:36]} 14.
Nxd4 {[%clk 0:02:54.3]} 14... Nc5 {[%clk 0:02:19.7]} 15. Qa3 {[%clk 0:02:53.3]}
15... Nxc3 {[%clk 0:01:58.8]} 16. Rxc3 {[%clk 0:02:47.7]} 16... e5 {[%clk
0:01:54.3]} 17. Nf3 {[%clk 0:02:29.1]} 17... Rfd8 {[%clk 0:01:37.1]} 18. Rfc1
{[%clk 0:02:26.3]} 18... Qf6 {[%clk 0:01:26.6]} 19. b4 {[%clk 0:02:22]} 19...
Ne6 {[%clk 0:01:26.6]} 20. Qb2 {[%clk 0:02:08.7]} 20... e4 {[%clk 0:00:32.2]}
21. Nd2 {[%clk 0:02:07.3]} 21... Ng5 {[%clk 0:00:28.7]} 22. Qc2 {[%clk
0:01:43.5]} 22... Rac8 {[%clk 0:00:06.8]} 23. Nb3 {[%clk 0:01:31.2]} 23... Rxc3
{[%clk 0:00:02.4]} 24. Qxc3 {[%clk 0:01:32.1]} 24... Qg6 {[%clk 0:00:02.1]} 25.
Kh1 {[%clk 0:01:26.8]} 25... Nf3 {[%clk 0:00:01.9]} 26. gxf3 {[%clk 0:01:20.1]}
26... exf3 {[%clk 0:00:01.6]} 27. Bf1 {[%clk 0:01:20.9]} 27... Rd6 {[%clk
0:00:01.3]} 28. Qe5 {[%clk 0:01:15.7]} 28... Re6 {[%clk 0:00:01.2]} 29. Qb8+
{[%clk 0:01:14.2]} 29... Kh7 {[%clk 0:00:01.9]} 30. Qxb7 {[%clk 0:01:11.3]}
30... Qg4 {[%clk 0:00:02.5]} 31. Rc4 {[%clk 0:01:06.8]} 1-0

[Event "Late-Titled-Tuesday-Blitz-April-23-2024"]
[Site "Chess.com"]
[Date "2024.04.23"]
[Round "3"]
[White "slorovel"]
[Black "osielchesslover2011"]
[Result "1-0"]
[WhiteElo "2555"]
[BlackElo "2232"]
[TimeControl "180+1"]
[EndTime "14:28:32 PDT"]
[Termination "slorovel won by checkmate"]

1. e4 {[%clk 0:03:00.9]} 1... c5 {[%clk 0:02:59.4]} 2. Nf3 {[%clk 0:03:00.2]}
2... d6 {[%clk 0:03:00.1]} 3. b3 {[%clk 0:02:58.9]} 3... Nc6 {[%clk 0:03:00.2]}
4. Bb2 {[%clk 0:02:58.9]} 4... Nf6 {[%clk 0:03:00.5]} 5. Qe2 {[%clk 0:02:56]}
5... e6 {[%clk 0:03:00.8]} 6. g3 {[%clk 0:02:56]} 6... Be7 {[%clk 0:03:01.2]} 7.
Bg2 {[%clk 0:02:56.1]} 7... h5 {[%clk 0:03:00.9]} 8. h3 {[%clk 0:02:53.5]} 8...
Qc7 {[%clk 0:02:59.3]} 9. O-O {[%clk 0:02:53.3]} 9... a6 {[%clk 0:02:59.1]} 10.
a4 {[%clk 0:02:52.3]} 10... Bd7 {[%clk 0:02:57.6]} 11. Na3 {[%clk 0:02:52]}
11... e5 {[%clk 0:02:45.1]} 12. Nc4 {[%clk 0:02:50.4]} 12... Rb8 {[%clk
0:02:37.4]} 13. a5 {[%clk 0:02:47.1]} 13... Nd4 {[%clk 0:02:36]} 14. Nxd4 {[%clk
0:02:45.8]} 14... cxd4 {[%clk 0:02:36.9]} 15. d3 {[%clk 0:02:44.6]} 15... Be6
{[%clk 0:02:15]} 16. f4 {[%clk 0:02:38.7]} 16... Bxc4 {[%clk 0:01:58.2]} 17.
bxc4 {[%clk 0:02:39.6]} 17... b5 {[%clk 0:01:58]} 18. axb6 {[%clk 0:02:37.4]}
18... Rxb6 {[%clk 0:01:58]} 19. Ba3 {[%clk 0:02:37.4]} 19... g6 {[%clk
0:01:28.6]} 20. f5 {[%clk 0:02:26.7]} 20... g5 {[%clk 0:01:25.4]} 21. Bc1 {[%clk
0:02:18.2]} 21... Nd7 {[%clk 0:01:21.3]} 22. f6 {[%clk 0:02:13.2]} 22... Bxf6
{[%clk 0:01:20.7]} 23. Bd2 {[%clk 0:02:13.3]} 23... Rb2 {[%clk 0:01:16.9]} 24.
Rxa6 {[%clk 0:02:10.2]} 24... Ke7 {[%clk 0:00:45.5]} 25. Bc1 {[%clk 0:01:35.2]}
25... Rb6 {[%clk 0:00:28.5]} 26. Ra1 {[%clk 0:01:26.7]} 26... h4 {[%clk
0:00:26.4]} 27. Bf3 {[%clk 0:01:17.2]} 27... hxg3 {[%clk 0:00:19.3]} 28. Bg4
{[%clk 0:01:17]} 28... Nc5 {[%clk 0:00:14.9]} 29. Qf3 {[%clk 0:01:12.5]} 29...
Rh6 {[%clk 0:00:10.6]} 30. Bxg5 {[%clk 0:01:07.3]} 30... Bxg5 {[%clk 0:00:07.1]}
31. Qxf7+ {[%clk 0:01:06.9]} 31... Kd8 {[%clk 0:00:07.8]} 32. Qf8# {[%clk
0:01:06.8]} 1-0

[Event "Late-Titled-Tuesday-Blitz-April-23-2024"]
[Site "Chess.com"]
[Date "2024.04.23"]
[Round "3"]
[White "Njal28"]
[Black "AradNazari"]
[Result "1-0"]
[WhiteElo "3033"]
[BlackElo "2767"]
[TimeControl "180+1"]
[EndTime "14:28:40 PDT"]
[Termination "Njal28 won by checkmate"]

1. Nf3 {[%clk 0:03:00.9]} 1... c5 {[%clk 0:02:46]} 2. b3 {[%clk 0:03:00.8]} 2...
Nc6 {[%clk 0:02:46.3]} 3. Bb2 {[%clk 0:02:59.4]} 3... d6 {[%clk 0:02:47]} 4. c4
{[%clk 0:02:56.5]} 4... e5 {[%clk 0:02:44.2]} 5. Nc3 {[%clk 0:02:54.3]} 5... g6
{[%clk 0:02:44.6]} 6. g3 {[%clk 0:02:49]} 6... Bg7 {[%clk 0:02:45.1]} 7. Bg2
{[%clk 0:02:48.1]} 7... Nge7 {[%clk 0:02:45.7]} 8. O-O {[%clk 0:02:47.9]} 8...
O-O {[%clk 0:02:46.3]} 9. d3 {[%clk 0:02:47.6]} 9... Rb8 {[%clk 0:02:46.8]} 10.
Nd2 {[%clk 0:02:40.5]} 10... a6 {[%clk 0:02:46.9]} 11. e3 {[%clk 0:02:35.2]}
11... b5 {[%clk 0:02:40.2]} 12. Nd5 {[%clk 0:02:30.2]} 12... Be6 {[%clk
0:02:37.1]} 13. Nxe7+ {[%clk 0:02:18.6]} 13... Nxe7 {[%clk 0:02:38]} 14. Qc2
{[%clk 0:02:16]} 14... h5 {[%clk 0:02:33.2]} 15. Ne4 {[%clk 0:02:11.4]} 15...
Qd7 {[%clk 0:02:21]} 16. Rae1 {[%clk 0:01:47.2]} 16... Rbd8 {[%clk 0:01:52.5]}
17. f4 {[%clk 0:01:45.1]} 17... bxc4 {[%clk 0:01:37]} 18. dxc4 {[%clk
0:01:44.4]} 18... exf4 {[%clk 0:01:19.1]} 19. Bxg7 {[%clk 0:01:41.5]} 19... Kxg7
{[%clk 0:01:19.6]} 20. Nf6 {[%clk 0:01:10.9]} 20... Kxf6 {[%clk 0:00:54.6]} 21.
Qb2+ {[%clk 0:01:10.3]} 21... Kg5 {[%clk 0:00:55]} 22. Qg7 {[%clk 0:01:10.4]}
22... fxg3 {[%clk 0:00:32.7]} 23. h4+ {[%clk 0:01:09]} 23... Kxh4 {[%clk
0:00:30.4]} 24. Qf6+ {[%clk 0:01:06.2]} 24... g5 {[%clk 0:00:30.7]} 25. Rf4+
{[%clk 0:00:53.6]} 25... Bg4 {[%clk 0:00:29.3]} 26. Be4 {[%clk 0:00:52.3]} 26...
Kh3 {[%clk 0:00:13.7]} 27. Qxg5 {[%clk 0:00:47.6]} 27... g2 {[%clk 0:00:04.8]}
28. Bxg2+ {[%clk 0:00:47.9]} 28... Kg3 {[%clk 0:00:05.4]} 29. Rf3# {[%clk
0:00:48.8]} 1-0

[Event "Late-Titled-Tuesday-Blitz-April-23-2024"]
[Site "Chess.com"]
[Date "2024.04.23"]
[Round "3"]
[White "Bykov_Egor"]
[Black "SharathRk6"]
[Result "1-0"]
[WhiteElo "2617"]
[BlackElo "2438"]
[TimeControl "180+1"]
[EndTime "14:28:47 PDT"]
[Termination "Bykov_Egor won by resignation"]

1. d4 {[%clk 0:02:59.9]} 1... Nf6 {[%clk 0:02:56.5]} 2. c4 {[%clk 0:03:00.3]}
2... e6 {[%clk 0:02:54.1]} 3. Nc3 {[%clk 0:03:00.4]} 3... Bb4 {[%clk 0:02:53.9]}
4. e3 {[%clk 0:03:00.4]} 4... O-O {[%clk 0:02:53.6]} 5. Bd3 {[%clk 0:03:00.9]}
5... d5 {[%clk 0:02:52.5]} 6. Nf3 {[%clk 0:03:00.2]} 6... b6 {[%clk 0:02:52.3]}
7. O-O {[%clk 0:02:58.9]} 7... Bb7 {[%clk 0:02:52.8]} 8. cxd5 {[%clk 0:02:56.8]}
8... exd5 {[%clk 0:02:52.9]} 9. a3 {[%clk 0:02:54]} 9... Be7 {[%clk 0:02:51.7]}
10. b4 {[%clk 0:02:43.3]} 10... Nbd7 {[%clk 0:02:51.2]} 11. Qb3 {[%clk 0:02:42]}
11... Rb8 {[%clk 0:02:44.2]} 12. b5 {[%clk 0:02:34.1]} 12... Re8 {[%clk
0:02:37.2]} 13. a4 {[%clk 0:02:32.8]} 13... Nf8 {[%clk 0:02:34.1]} 14. Ne5
{[%clk 0:02:20.2]} 14... Ng6 {[%clk 0:02:32.1]} 15. f4 {[%clk 0:02:09.4]} 15...
Nxe5 {[%clk 0:02:26.3]} 16. fxe5 {[%clk 0:02:09.3]} 16... Ne4 {[%clk 0:02:26.9]}
17. Bxe4 {[%clk 0:01:52.9]} 17... dxe4 {[%clk 0:02:27.1]} 18. Rxf7 {[%clk
0:01:41.7]} 18... Kh8 {[%clk 0:02:27]} 19. Bd2 {[%clk 0:01:35.1]} 19... Bg5
{[%clk 0:02:18.1]} 20. Raf1 {[%clk 0:01:32.5]} 20... a6 {[%clk 0:01:52.3]} 21.
Qc4 {[%clk 0:01:31.6]} 21... axb5 {[%clk 0:01:50]} 22. axb5 {[%clk 0:01:32.5]}
22... Re7 {[%clk 0:01:42.4]} 23. e6 {[%clk 0:01:21.7]} 23... Bc8 {[%clk
0:01:32.7]} 24. d5 {[%clk 0:01:19.1]} 24... Bb7 {[%clk 0:01:06.6]} 25. Nxe4
{[%clk 0:01:13.2]} 25... Bh6 {[%clk 0:00:47.1]} 26. Bc3 {[%clk 0:01:08.8]} 26...
Bxe3+ {[%clk 0:00:41.4]} 27. Kh1 {[%clk 0:01:08.7]} 27... Bh6 {[%clk 0:00:29.9]}
28. Bb4 {[%clk 0:01:00.4]} 28... Re8 {[%clk 0:00:20.1]} 29. e7 {[%clk
0:00:48.2]} 29... Rxe7 {[%clk 0:00:07.8]} 30. Bxe7 {[%clk 0:00:47.5]} 30... Qe8
{[%clk 0:00:07.8]} 31. Rf8+ {[%clk 0:00:45.8]} 31... Qxf8 {[%clk 0:00:08.2]} 32.
Rxf8+ {[%clk 0:00:46.1]} 1-0

[Event "Late-Titled-Tuesday-Blitz-April-23-2024"]
[Site "Chess.com"]
[Date "2024.04.23"]
[Round "3"]
[White "DeTimmerman"]
[Black "Sargsyan_Shant"]
[Result "0-1"]
[WhiteElo "2744"]
[BlackElo "2978"]
[TimeControl "180+1"]
[EndTime "14:28:49 PDT"]
[Termination "Sargsyan_Shant won by resignation"]

1. b4 {[%clk 0:02:59.1]} 1... g6 {[%clk 0:03:00.7]} 2. Bb2 {[%clk 0:02:58.9]}
2... Nf6 {[%clk 0:03:01]} 3. b5 {[%clk 0:02:58.9]} 3... Bg7 {[%clk 0:03:01.3]}
4. c4 {[%clk 0:02:58.8]} 4... O-O {[%clk 0:03:01.6]} 5. e3 {[%clk 0:02:58.4]}
5... a6 {[%clk 0:02:59.1]} 6. a4 {[%clk 0:02:58.2]} 6... axb5 {[%clk 0:02:59.2]}
7. axb5 {[%clk 0:02:59.1]} 7... Rxa1 {[%clk 0:03:00.1]} 8. Bxa1 {[%clk 0:02:59]}
8... c6 {[%clk 0:03:00.8]} 9. Nf3 {[%clk 0:02:59.2]} 9... d6 {[%clk 0:02:58.5]}
10. Be2 {[%clk 0:02:59.6]} 10... e5 {[%clk 0:02:58.5]} 11. O-O {[%clk
0:02:59.7]} 11... Re8 {[%clk 0:02:58.8]} 12. d4 {[%clk 0:02:59]} 12... e4 {[%clk
0:02:59.4]} 13. Nfd2 {[%clk 0:02:59]} 13... d5 {[%clk 0:03:00]} 14. Nc3 {[%clk
0:02:59.5]} 14... h5 {[%clk 0:03:00.4]} 15. Qb3 {[%clk 0:02:59.7]} 15... Be6
{[%clk 0:02:59]} 16. Bb2 {[%clk 0:02:58.8]} 16... h4 {[%clk 0:02:58.8]} 17. Ba3
{[%clk 0:02:47.9]} 17... Nbd7 {[%clk 0:02:56.9]} 18. bxc6 {[%clk 0:02:46.7]}
18... bxc6 {[%clk 0:02:57.2]} 19. cxd5 {[%clk 0:02:47.4]} 19... cxd5 {[%clk
0:02:58.1]} 20. Nb5 {[%clk 0:02:48]} 20... Bf8 {[%clk 0:02:49.7]} 21. h3 {[%clk
0:02:41.7]} 21... Qb6 {[%clk 0:02:47.4]} 22. Bxf8 {[%clk 0:02:27.1]} 22... Nxf8
{[%clk 0:02:45.6]} 23. Qa3 {[%clk 0:02:23.3]} 23... N8h7 {[%clk 0:02:37.3]} 24.
Rb1 {[%clk 0:02:18.3]} 24... Qc6 {[%clk 0:02:23.4]} 25. Rc1 {[%clk 0:02:17.9]}
25... Qb6 {[%clk 0:02:22.1]} 26. Rb1 {[%clk 0:02:13]} 26... Qc6 {[%clk
0:02:20.7]} 27. Rc1 {[%clk 0:02:13]} 27... Qa8 {[%clk 0:02:20.5]} 28. Qxa8
{[%clk 0:02:00.4]} 28... Rxa8 {[%clk 0:02:21.4]} 29. Nb3 {[%clk 0:02:00.7]}
29... Ng5 {[%clk 0:02:21.1]} 30. Nc5 {[%clk 0:02:00.2]} 30... Ra2 {[%clk
0:02:19.3]} 31. Nxe6 {[%clk 0:01:56.3]} 31... Nxe6 {[%clk 0:02:15.7]} 32. Bf1
{[%clk 0:01:53]} 32... Kg7 {[%clk 0:02:15.7]} 33. Rc6 {[%clk 0:01:32.1]} 33...
g5 {[%clk 0:02:09]} 34. Nd6 {[%clk 0:01:30.4]} 34... Kg6 {[%clk 0:02:07.1]} 35.
Nc8 {[%clk 0:01:18.5]} 35... g4 {[%clk 0:01:47.6]} 36. Ne7+ {[%clk 0:01:14]}
36... Kg5 {[%clk 0:01:47.3]} 37. hxg4 {[%clk 0:01:13.5]} 37... Kxg4 {[%clk
0:01:43.3]} 38. Rd6 {[%clk 0:01:06.4]} 38... Ra5 {[%clk 0:01:43.2]} 39. Be2+
{[%clk 0:01:06.6]} 39... Kg5 {[%clk 0:01:42.8]} 40. f3 {[%clk 0:01:05.4]} 40...
exf3 {[%clk 0:01:27.1]} 41. Bxf3 {[%clk 0:01:06.3]} 41... Nc7 {[%clk 0:01:21.3]}
42. Rc6 {[%clk 0:01:06.5]} 42... Ra7 {[%clk 0:01:13.8]} 43. Rc5 {[%clk
0:01:01.1]} 43... Ne6 {[%clk 0:01:12.6]} 44. Rb5 {[%clk 0:00:57.5]} 44... Rxe7
{[%clk 0:01:12.3]} 45. Bxd5 {[%clk 0:00:46.3]} 45... Nc7 {[%clk 0:01:12]} 0-1